bitfinex/quotes_BTCUSD_20220103
["timestamp","ask_amount","ask_price","bid_price","bid_amount"]
[1641228768182,0.053922,46363.0,46359.0,0.107853]
[1641228768482,0.053922,46363.0,46358.0,0.19457641]
[1641228768685,0.053922,46363.0,46360.0,0.053922]
[1641228768885,0.6020146,46367.0,46362.0,0.00122642]
[1641228769085,0.09158472,46366.0,46365.0,0.09847686]
[1641228769288,0.14550372,46366.0,46365.0,0.09847686]
[1641228769544,0.053919,46366.0,46365.0,0.09847686]
[1641228769940,0.053919,46366.0,46365.0,0.42261857]
[1641228771742,0.053919,46366.0,46365.0,0.42268649]
[1641228771946,0.053919,46366.0,46365.0,0.09854478]
[1641228773047,0.053919,46366.0,46365.0,0.35965748]
[1641228773492,0.053919,46366.0,46365.0,0.55861748]
[1641228775293,0.054019,46370.0,46365.0,0.55861748]
[1641228775494,0.054019,46370.0,46367.0,0.053919]
[1641228777152,0.054019,46370.0,46369.0,0.37600356]
[1641228777355,0.054019,46370.0,46369.0,0.5762306]
[1641228777356,0.0001,46370.0,46369.0,0.5762306]
[1641228777546,0.0001,46370.0,46369.0,0.7117586]
[1641228777746,0.0001,46370.0,46369.0,0.33575504]
[1641228778547,0.0001,46370.0,46369.0,0.053908]
[1641228779349,0.0001,46370.0,46368.0,0.161721]
[1641228779547,0.0983282,46370.0,46368.0,0.161721]
[1641228779755,0.1522462,46370.0,46368.0,0.161721]
[1641228779951,0.09612906,46369.0,46368.0,0.89188715]
[1641228780450,0.09612906,46369.0,46368.0,0.73016615]
[1641228780649,0.05,46369.0,46368.0,0.73016615]
[1641228780892,0.05,46369.0,46366.0,0.053919]
[1641228780893,0.05,46368.0,46366.0,0.053919]
[1641228781095,0.05,46369.0,46366.0,0.053919]
[1641228781300,0.053927,46367.0,46365.0,0.73023407]
[1641228781694,0.10785305,46367.0,46365.0,6.792e-05]
[1641228781991,0.05,46366.0,46365.0,6.792e-05]
[1641228782794,0.15785305,46367.0,46365.0,6.792e-05]
[1641228786529,0.05,46367.0,46365.0,0.00130758]
[1641228786730,0.05,46367.0,46365.0,6.792e-05]
[1641228786930,0.054018,46370.0,46365.0,6.792e-05]
[1641228787132,0.6520146,46372.0,46366.0,0.053917]
[1641228787330,0.6520146,46372.0,46365.0,0.10790092]
[1641228787636,0.053919,46370.0,46365.0,0.83806707]
[1641228788495,0.1078374,46370.0,46366.0,0.107836]
[1641228788897,0.1078374,46370.0,46366.0,0.89192215]
[1641228789098,0.1578374,46370.0,46366.0,0.89192215]
[1641228790097,0.103919,46370.0,46366.0,0.89192215]
[1641228790700,0.09084815,46369.0,46366.0,0.89192215]
[1641228791102,0.05,46368.0,46366.0,0.89192215]
[1641228791501,0.103919,46370.0,46366.0,0.89192215]
[1641228791703,0.053919,46370.0,46366.0,0.89192215]
[1641228792230,0.10783908,46370.0,46366.0,0.83800215]
[1641228792435,0.49739568,46374.0,46369.0,0.00120555]
[1641228792635,1.04362251,46375.0,46373.0,0.10122673]
[1641228792835,1.04362251,46375.0,46374.0,1.12616575]
[1641228793030,1.04362251,46375.0,46374.0,0.71507975]
[1641228793230,1.04362251,46375.0,46374.0,0.24331749]
[1641228793442,1.04362251,46375.0,46374.0,0.80476965]
[1641228793631,1.04362251,46375.0,46374.0,0.70476965]
[1641228793834,1.04362251,46375.0,46374.0,0.65476965]
[1641228794136,1.01862251,46375.0,46374.0,0.65476965]
[1641228794335,1.01862251,46375.0,46374.0,0.50976965]
[1641228794535,1.01862251,46375.0,46374.0,0.65976965]
[1641228794732,1.01862251,46375.0,46374.0,0.96352028]
[1641228795539,1.01862251,46375.0,46374.0,1.04975041]
[1641228795991,1.01862251,46375.0,46374.0,0.96352028]
[1641228797596,1.01862251,46375.0,46374.0,1.04975041]
[1641228797800,1.01862251,46375.0,46374.0,0.96352028]
[1641228798196,1.01862251,46375.0,46374.0,0.65976965]
[1641228798401,1.01862251,46375.0,46374.0,1.79928679]
[1641228798598,1.01862251,46375.0,46374.0,0.97928679]
[1641228798798,0.58750251,46375.0,46374.0,3.69950019]
[1641228799001,0.15639651,46375.0,46374.0,1.88998305]
[1641228799398,0.0001,46380.0,46379.0,0.00122141]
[1641228799647,0.0001,46380.0,46379.0,0.58638103]
[1641228800044,0.0001,46380.0,46379.0,0.58515962]
[1641228800444,0.0001,46380.0,46379.0,0.29597]
[1641228803506,0.0001,46380.0,46379.0,0.304504]
[1641228803908,0.09736127,46380.0,46379.0,0.261304]
[1641228804108,0.0004452,46380.0,46379.0,0.207413]
[1641228804308,0.0011356,46380.0,46379.0,0.207413]
[1641228804508,0.0011356,46380.0,46379.0,0.008534]
[1641228804711,0.00654635,46380.0,46379.0,0.008534]
[1641228804911,0.00654635,46380.0,46379.0,0.73860394]
[1641228805513,0.01634635,46380.0,46379.0,0.008534]
[1641228805712,0.0004452,46380.0,46379.0,0.008534]
[1641228806414,0.07184104,46381.0,46379.0,0.008534]
[1641228806811,0.07184104,46381.0,46379.0,0.006534]
[1641228807233,0.05,46380.0,46379.0,0.006534]
[1641228808439,0.07184104,46381.0,46379.0,0.006534]
[1641228808835,0.06936132,46381.0,46379.0,0.006534]
[1641228809936,0.01545478,46381.0,46379.0,0.060439]
[1641228810136,0.01545478,46381.0,46379.0,0.06018024]
[1641228810537,0.01545478,46381.0,46379.0,0.79025018]
[1641228810799,0.01545478,46381.0,46380.0,0.198875]
[1641228811987,0.01545478,46381.0,46380.0,0.51295485]
[1641228812187,0.053893,46384.0,46381.0,0.08081768]
[1641228812390,0.053893,46384.0,46382.0,0.198862]
[1641228812890,0.053893,46384.0,46381.0,0.18860368]
[1641228813491,0.053893,46384.0,46382.0,0.73002727]
[1641228814088,0.053893,46384.0,46383.0,0.198857]
[1641228814289,0.053895,46385.0,46383.0,0.92888427]
[1641228814551,0.053895,46385.0,46383.0,0.98277927]
[1641228814749,0.053895,46385.0,46383.0,0.92888427]
[1641228814951,0.053895,46385.0,46383.0,0.73856027]
[1641228815148,0.00076458,46384.0,46383.0,0.73856027]
[1641228815549,0.00076458,46384.0,46383.0,0.008533]
[1641228816750,0.10665637,46385.0,46383.0,0.008533]
[1641228820690,0.28621539,46384.0,46383.0,0.008533]
[1641228821600,0.46246539,46384.0,46383.0,0.008533]
[1641228821893,0.349955,46383.0,46380.0,0.73002727]
[1641228822151,0.1,46381.0,46380.0,0.73002727]
[1641228822351,0.39239368,46381.0,46380.0,0.24277327]
[1641228822556,0.74734868,46381.0,46379.0,1.24251454]
[1641228822853,0.349955,46380.0,46379.0,0.81114354]
[1641228823051,0.393155,46380.0,46379.0,0.81114354]
[1641228823252,0.393155,46380.0,46379.0,0.577162]
[1641228823452,0.393155,46380.0,46379.0,0.145786]
[1641228823652,0.543155,46380.0,46379.0,0.145786]
[1641228823853,1.02283759,46380.0,46379.0,0.145786]
[1641228824056,1.15283759,46380.0,46374.0,0.00801642]
[1641228824256,0.053922,46377.0,46364.0,0.00122821]
[1641228824455,0.25516855,46375.0,46364.0,0.00122821]
[1641228824653,0.09966847,46374.0,46362.0,0.053921]
[1641228824857,0.39600208,46373.0,46363.0,0.198962]
[1641228825054,0.39600208,46373.0,46363.0,0.44700724]
[1641228825055,0.09309461,46371.0,46363.0,0.44700724]
[1641228825254,0.40455861,46370.0,46363.0,0.252882]
[1641228825454,0.053921,46367.0,46363.0,0.252882]
[1641228825655,0.09311804,46366.0,46363.0,0.252882]
[1641228825899,0.1050278,46365.0,46363.0,0.252882]
[1641228826102,0.2954473,46367.0,46363.0,0.252882]
[1641228826301,0.0539201,46366.0,46363.0,0.05392]
[1641228826501,0.053921,46366.0,46363.0,0.05392]
[1641228828100,0.05408655,46369.0,46364.0,0.198964]
[1641228828300,0.05408655,46369.0,46363.0,0.05392]
[1641228828301,0.05408655,46369.0,46363.0,0.062454]
[1641228828700,0.05408655,46369.0,46365.0,0.053914]
[1641228828701,0.00017055,46369.0,46365.0,0.053914]
[1641228828903,0.00017055,46369.0,46367.0,0.053914]
[1641228829103,0.00017055,46369.0,46368.0,1.80031462]
[1641228829314,0.00017055,46369.0,46368.0,0.53425862]
[1641228829555,0.00017055,46369.0,46368.0,0.73640319]
[1641228829755,0.00017055,46369.0,46368.0,0.78640319]
[1641228829953,0.00017055,46369.0,46368.0,0.88640319]
[1641228830156,0.00017055,46369.0,46368.0,0.73640319]
[1641228830356,0.00017055,46369.0,46368.0,0.88140319]
[1641228830653,0.00017055,46369.0,46368.0,0.63552156]
[1641228830855,0.00017055,46369.0,46368.0,0.39052156]
[1641228832953,0.00017055,46369.0,46368.0,0.53552156]
[1641228833395,0.00698811,46373.0,46369.0,0.198937]
[1641228833596,0.00698811,46373.0,46371.0,0.05391]
[1641228833797,0.00698811,46373.0,46372.0,0.19892]
[1641228834195,0.10903127,46380.0,46372.0,0.19892]
[1641228834196,0.053909,46374.0,46372.0,0.19892]
[1641228834599,0.06189699,46378.0,46372.0,0.19892]
[1641228834797,0.06189699,46378.0,46372.0,0.053907]
[1641228835400,0.05189699,46378.0,46372.0,0.053907]
[1641228835599,0.053907,46375.0,46373.0,0.73017475]
[1641228835798,0.053907,46375.0,46374.0,0.053908]
[1641228835997,0.23388728,46375.0,46374.0,0.053908]
[1641228836197,0.10244767,46374.0,46373.0,0.73017475]
[1641228836598,0.15635967,46374.0,46372.0,0.73017475]
[1641228836800,0.10339077,46373.0,46372.0,0.73017475]
[1641228837072,0.10339077,46373.0,46372.0,0.92909075]
[1641228837275,0.15322263,46374.0,46372.0,0.92909075]
[1641228837470,0.053912,46374.0,46372.0,0.73017475]
[1641228837669,0.053912,46374.0,46372.0,0.78408575]
[1641228837870,0.00014504,46373.0,46372.0,0.78408575]
[1641228838071,0.00029008,46373.0,46372.0,0.78408575]
[1641228838270,0.00029008,46373.0,46372.0,0.98300375]
[1641228840574,0.00029008,46373.0,46372.0,0.252829]
[1641228844855,0.00029008,46373.0,46372.0,0.61111637]
[1641228845855,0.00029008,46373.0,46372.0,0.296029]
[1641228848993,0.0004192,46373.0,46372.0,0.296029]
[1641228850098,0.0004192,46373.0,46372.0,0.252829]
[1641228850695,0.10477064,46373.0,46372.0,0.252829]
[1641228850895,0.0004192,46373.0,46372.0,0.252829]
[1641228853039,0.0538262,46374.0,46373.0,1.61]
[1641228853239,0.16970883,46378.0,46373.0,2.537013]
[1641228853240,0.00798894,46378.0,46373.0,2.537013]
[1641228853441,0.60476193,46383.0,46377.0,0.67152152]
[1641228853738,0.60476193,46383.0,46382.0,1.14525668]
[1641228853940,0.60476193,46383.0,46382.0,1.38731868]
[1641228854136,0.60476193,46383.0,46382.0,2.32724678]
[1641228854541,0.0001,46390.0,46382.0,2.38112978]
[1641228854740,0.0001,46390.0,46388.0,0.00126965]
[1641228854940,0.0001,46390.0,46388.0,0.29716999]
[1641228855341,0.0001,46390.0,46388.0,1.77646144]
[1641228855541,0.0001,46390.0,46388.0,1.54116999]
[1641228856694,0.0001,46390.0,46388.0,1.59504999]
[1641228856894,0.0001,46390.0,46388.0,1.64504999]
[1641228858496,0.0001,46390.0,46388.0,2.23494999]
[1641228858698,0.00800516,46395.0,46392.0,0.36008023]
[1641228858897,0.00800516,46395.0,46394.0,2.43616755]
[1641228859198,0.001,46409.0,46408.0,0.00121246]
[1641228859397,0.001,46409.0,46408.0,0.1218826]
[1641228859655,0.001,46409.0,46408.0,0.3205976]
[1641228860258,0.001,46409.0,46408.0,0.3744586]
[1641228860957,0.001,46409.0,46408.0,1.10228442]
[1641228861157,0.09162123,46415.0,46409.0,0.19871]
[1641228861358,0.09862721,46416.0,46411.0,0.107728]
[1641228861559,0.09293916,46415.0,46411.0,0.053864]
[1641228861761,0.09248306,46416.0,46411.0,0.053864]
[1641228861958,0.0938735,46415.0,46411.0,0.053864]
[1641228862157,0.04867245,46417.0,46411.0,0.053864]
[1641228862158,0.10347938,46416.0,46411.0,0.053864]
[1641228862359,0.10347938,46416.0,46412.0,0.053863]
[1641228862560,0.10347938,46416.0,46413.0,0.053864]
[1641228863160,0.04867245,46417.0,46414.0,0.04445486]
[1641228863411,0.04867245,46417.0,46416.0,0.343673]
[1641228863610,0.04867245,46417.0,46416.0,0.71565677]
[1641228863809,0.04867245,46417.0,46416.0,0.440723]
[1641228864009,0.04867245,46417.0,46416.0,0.53882715]
[1641228865807,0.04867245,46417.0,46416.0,0.68882715]
[1641228866020,0.04867245,46417.0,46416.0,1.09672578]
[1641228866209,0.04867245,46417.0,46416.0,1.09799562]
[1641228866413,0.04867245,46417.0,46416.0,2.29199562]
[1641228866614,0.09373076,46418.0,46417.0,2.952665]
[1641228866615,7.6e-07,46418.0,46417.0,2.952665]
[1641228866811,7.6e-07,46418.0,46417.0,2.09918957]
[1641228867059,0.10139693,46433.0,46417.0,2.09918957]
[1641228867060,0.09233756,46432.0,46420.0,0.00122289]
[1641228867257,0.09564433,46439.0,46427.0,1.14522854]
[1641228867456,0.09564433,46439.0,46428.0,0.6001238]
[1641228867457,0.001,46439.0,46428.0,0.6001238]
[1641228867758,0.001,46439.0,46428.0,1.7441238]
[1641228867953,0.001,46439.0,46428.0,0.6001238]
[1641228868158,0.10438164,46439.0,46428.0,0.62848229]
[1641228868353,0.09799573,46437.0,46428.0,0.94581888]
[1641228868553,0.09382151,46436.0,46428.0,0.94581888]
[1641228868754,0.09250764,46435.0,46428.0,0.94581888]
[1641228868955,0.09522931,46433.0,46428.0,0.94581888]
[1641228869155,0.09522931,46433.0,46428.0,0.62848229]
[1641228870156,0.00108654,46429.0,46428.0,2.09046]
[1641228870357,0.00018654,46430.0,46428.0,1.84254943]
[1641228870556,0.00018654,46430.0,46429.0,1.69693337]
[1641228870802,0.00800435,46438.0,46429.0,1.7413617]
[1641228870992,0.00800435,46438.0,46433.0,0.053827]
[1641228871190,0.00800435,46438.0,46434.0,0.55953958]
[1641228871395,0.00800435,46438.0,46435.0,0.36319118]
[1641228871591,0.00300435,46438.0,46436.0,0.37880376]
[1641228872193,0.001,46439.0,46436.0,0.37880376]
[1641228872393,0.001,46439.0,46436.0,0.48645976]
[1641228873697,0.001,46439.0,46436.0,0.053829]
[1641228874096,0.349955,46438.0,46436.0,0.053829]
[1641228874298,0.349955,46438.0,46433.0,0.107653]
[1641228874551,0.20499773,46434.0,46430.0,0.10768]
[1641228875255,0.001,46439.0,46431.0,0.07241537]
[1641228875451,0.001,46439.0,46434.0,0.053839]
[1641228876253,0.23887495,46438.0,46434.0,0.053839]
[1641228876653,0.349955,46437.0,46434.0,0.053839]
[1641228877055,0.399955,46437.0,46434.0,0.053839]
[1641228878423,0.05,46437.0,46434.0,0.053839]
[1641228878619,0.28887495,46438.0,46434.0,0.053839]
[1641228879820,0.23887495,46438.0,46434.0,0.103839]
[1641228880023,0.23887495,46438.0,46435.0,0.05]
[1641228880222,0.23887495,46438.0,46434.0,0.053839]
[1641228880425,0.349955,46437.0,46434.0,0.053839]
[1641228880624,0.414055,46437.0,46434.0,0.053839]
[1641228880826,0.37905315,46436.0,46431.0,0.053848]
[1641228881036,0.053848,46433.0,46431.0,0.053848]
[1641228881326,0.1,46434.0,46428.0,0.00800417]
[1641228881327,0.65524107,46432.0,46428.0,0.00800417]
[1641228881526,0.80524107,46432.0,46428.0,0.00800417]
[1641228881727,0.0001,46430.0,46428.0,0.00800417]
[1641228881929,0.929848,46429.0,46428.0,0.00800417]
[1641228882161,0.05,46428.0,46417.0,0.00120369]
[1641228882358,0.349848,46427.0,46412.0,1.09540435]
[1641228882562,0.2,46424.0,46411.0,1.09540435]
[1641228882760,0.30631344,46423.0,46411.0,1.09540435]
[1641228882957,0.21266238,46416.0,46411.0,1.1703678]
[1641228883158,0.21266238,46416.0,46413.0,0.107724]
[1641228883359,0.053865,46417.0,46413.0,0.107724]
[1641228884057,0.10059664,46415.0,46413.0,0.107724]
[1641228884261,0.053862,46420.0,46413.0,0.107724]
[1641228884559,0.09192483,46415.0,46413.0,0.107724]
[1641228884758,0.05386164,46424.0,46414.0,0.234609]
[1641228885058,0.0432,46424.0,46413.0,0.107724]
[1641228885257,0.19844155,46420.0,46413.0,0.107724]
[1641228885460,0.19844155,46420.0,46416.0,0.05386]
[1641228885658,0.0432,46424.0,46418.0,0.08817032]
[1641228885898,0.41316026,46425.0,46418.0,0.08817032]
[1641228886099,0.00123926,46425.0,46418.0,0.08817032]
[1641228886600,0.19595114,46424.0,46418.0,0.08817032]
[1641228887500,0.19595114,46424.0,46418.0,0.14202832]
[1641228887701,0.19595114,46424.0,46418.0,0.053858]
[1641228888101,0.00123926,46425.0,46418.0,0.053858]
[1641228888500,0.05509526,46425.0,46418.0,0.053858]
[1641228889203,0.053856,46425.0,46421.0,0.053855]
[1641228890051,0.053856,46425.0,46421.0,0.77956668]
[1641228890449,0.053856,46425.0,46421.0,0.77945992]
[1641228890850,0.18577923,46423.0,46421.0,0.77945992]
[1641228891453,0.18577923,46423.0,46421.0,0.05374824]
[1641228892053,6.532e-05,46422.0,46421.0,0.05374824]
[1641228893155,6.532e-05,46422.0,46420.0,0.72571168]
[1641228893796,6.532e-05,46422.0,46419.0,0.72571168]
[1641228894398,6.532e-05,46422.0,46418.0,0.72571168]
[1641228894596,6.532e-05,46422.0,46419.0,0.234584]
[1641228894996,0.10538898,46421.0,46419.0,0.96029568]
[1641228896899,6.532e-05,46422.0,46419.0,0.96029568]
[1641228897453,6.532e-05,46422.0,46420.0,0.053854]
[1641228897650,6.532e-05,46422.0,46421.0,0.234571]
[1641228899952,6.532e-05,46422.0,46421.0,0.49741536]
[1641228900552,6.532e-05,46422.0,46421.0,0.234571]
[1641228901613,6.532e-05,46422.0,46421.0,0.55141484]
[1641228902415,6.532e-05,46422.0,46421.0,0.69770985]
[1641228902612,6.532e-05,46422.0,46421.0,0.79770985]
[1641228903014,6.532e-05,46422.0,46421.0,0.57406601]
[1641228903216,6.532e-05,46422.0,46421.0,1.29605067]
[1641228903513,6.532e-05,46422.0,46421.0,1.78076601]
[1641228904414,6.532e-05,46422.0,46421.0,1.63076601]
[1641228904646,6.532e-05,46422.0,46421.0,0.63676601]
[1641228904950,6.532e-05,46422.0,46421.0,0.27906601]
[1641228905148,6.532e-05,46422.0,46421.0,0.234571]
[1641228906547,6.532e-05,46422.0,46420.0,0.053854]
[1641228907048,6.532e-05,46422.0,46420.0,0.7800301]
[1641228907250,6.532e-05,46422.0,46421.0,0.23457]
[1641228907455,0.04898564,46423.0,46421.0,0.23457]
[1641228907749,0.35187352,46429.0,46424.0,0.053854]
[1641228909105,0.053854,46428.0,46424.0,0.053854]
[1641228911606,0.29618711,46427.0,46424.0,0.053854]
[1641228912063,0.29618711,46427.0,46421.0,0.23275445]
[1641228912265,0.053854,46425.0,46421.0,0.23275445]
[1641228912465,0.053854,46425.0,46422.0,0.234559]
[1641228913468,0.053854,46425.0,46422.0,0.288413]
[1641228916510,0.053854,46425.0,46423.0,0.07853365]
[1641228916709,0.053854,46425.0,46424.0,0.234551]
[1641228917918,0.053854,46425.0,46424.0,0.67563175]
[1641228918111,0.053849,46428.0,46424.0,0.67563175]
[1641228918311,0.0001,46430.0,46427.0,0.24296787]
[1641228918510,0.0001,46430.0,46428.0,0.234525]
[1641228918913,0.0001,46430.0,46429.0,0.22473379]
[1641228919110,0.0001,46430.0,46429.0,0.45925279]
[1641228920566,0.0001,46430.0,46429.0,0.234519]
[1641228922562,0.0001,46430.0,46429.0,0.284519]
[1641228924725,0.10426163,46433.0,46430.0,0.32117032]
[1641228924927,0.00796363,46437.0,46430.0,0.37501332]
[1641228925130,0.00796363,46437.0,46434.0,0.234488]
[1641228925330,0.00796363,46437.0,46436.0,0.23575532]
[1641228925530,0.00796363,46437.0,46436.0,0.32895532]
[1641228925928,0.00796363,46437.0,46436.0,0.59287427]
[1641228926129,0.00796363,46437.0,46436.0,0.69287427]
[1641228926445,0.001,46439.0,46437.0,0.13248302]
[1641228926628,0.001,46439.0,46438.0,0.277661]
[1641228926827,0.001,46439.0,46438.0,0.68524059]
[1641228927456,0.001,46439.0,46438.0,1.13651539]
[1641228927651,0.001,46439.0,46438.0,1.23777264]
[1641228927853,0.001,46439.0,46438.0,1.28777264]
[1641228928256,0.001,46439.0,46438.0,2.43177264]
[1641228928953,0.001,46439.0,46438.0,2.38177264]
[1641228929355,0.001,46439.0,46438.0,2.43177264]
[1641228929555,0.0001,46440.0,46439.0,0.6150799]
[1641228929755,0.0001,46440.0,46439.0,2.48222923]
[1641228929957,0.0001,46440.0,46439.0,2.07222923]
[1641228930156,0.0079635,46444.0,46439.0,2.07222923]
[1641228930358,0.09132978,46447.0,46445.0,0.26977749]
[1641228930557,1.05495191,46459.0,46446.0,0.27761]
[1641228930829,1.05495191,46459.0,46448.0,0.234398]
[1641228931517,0.053815,46456.0,46448.0,0.2356887]
[1641228931917,1.05495191,46459.0,46448.0,0.2856887]
[1641228932117,0.421,46459.0,46448.0,0.59407957]
[1641228932319,0.001,46459.0,46448.0,0.3288887]
[1641228932519,0.001,46459.0,46448.0,1.6178887]
[1641228932918,0.001,46459.0,46449.0,0.0989]
[1641228933118,0.001,46459.0,46449.0,0.51759642]
[1641228933521,0.001,46459.0,46455.0,0.05508777]
[1641228933717,0.001,46459.0,46456.0,0.234345]
[1641228934117,0.001,46459.0,46457.0,0.08080468]
[1641228934318,0.001,46459.0,46458.0,0.22686213]
[1641228934770,0.001,46459.0,46458.0,0.46119513]
[1641228936469,0.001,46459.0,46458.0,0.234333]
[1641228937669,0.001,46459.0,46458.0,0.42680174]
[1641228939131,0.001,46459.0,46458.0,0.234333]
[1641228942976,0.001,46459.0,46458.0,0.5449513]
[1641228943880,0.001,46459.0,46458.0,0.54616151]
[1641228944078,0.001,46459.0,46458.0,0.64616151]
[1641228944280,0.001,46459.0,46458.0,1.79016151]
[1641228945278,0.001,46459.0,46458.0,1.57274321]
[1641228945916,0.001,46459.0,46458.0,0.42874321]
[1641228946917,0.001,46459.0,46458.0,0.427533]
[1641228947319,0.4161,46466.0,46460.0,0.23778686]
[1641228947517,0.22582022,46465.0,46462.0,0.107595]
[1641228947718,0.2270246,46465.0,46462.0,0.053797]
[1641228948515,0.2270246,46465.0,46463.0,0.71577463]
[1641228948718,0.4161,46466.0,46463.0,0.71577463]
[1641228949121,0.4161,46466.0,46462.0,0.06233]
[1641228950581,0.4161,46466.0,46460.0,0.56250187]
[1641228950582,0.0001,46461.0,46460.0,0.56250187]
[1641228950772,0.0001,46471.0,46464.0,0.21646671]
[1641228951173,0.0001,46471.0,46464.0,0.26646671]
[1641228951370,0.0001,46472.0,46464.0,0.26646671]
[1641228951970,0.0001,46472.0,46466.0,0.107593]
[1641228952169,0.0001,46472.0,46467.0,0.234274]
[1641228952776,0.0001,46472.0,46469.0,0.00124882]
[1641228952975,0.0001,46472.0,46470.0,0.15077626]
[1641228953173,0.0001,46472.0,46471.0,0.234251]
[1641228953422,0.0002,46476.0,46471.0,0.234251]
[1641228953423,0.0049,46482.0,46471.0,0.327451]
[1641228953825,0.0049,46482.0,46473.0,0.19116669]
[1641228954021,0.0049,46482.0,46474.0,0.096989]
[1641228954222,0.0012,46479.0,46474.0,0.096989]
[1641228954425,0.05499,46479.0,46475.0,0.288013]
[1641228954823,0.0011,46479.0,46475.0,0.338013]
[1641228955021,0.0011,46479.0,46477.0,0.05378516]
[1641228955221,0.0011,46479.0,46478.0,0.234204]
[1641228955425,0.0011,46479.0,46478.0,0.28799]
[1641228955722,0.0011,46479.0,46478.0,0.33799]
[1641228956821,0.1001,46482.0,46478.0,0.499342]
[1641228956822,0.0002,46480.0,46478.0,0.499342]
[1641228957069,0.0002,46480.0,46478.0,0.60690943]
[1641228957470,0.0002,46480.0,46479.0,0.42421723]
[1641228957868,0.0002,46480.0,46478.0,0.44891374]
[1641228958271,0.0001,46481.0,46478.0,0.44891374]
[1641228958473,0.0001,46481.0,46479.0,0.161343]
[1641228958670,0.0001,46481.0,46480.0,0.05378015]
[1641228958870,0.8402,46483.0,46480.0,0.26889915]
[1641228959072,0.0999,46482.0,46480.0,0.31889915]
[1641228959271,0.8402,46483.0,46481.0,0.27744043]
[1641228959473,0.8402,46483.0,46481.0,0.05]
[1641228959675,0.0999,46482.0,46481.0,0.05]
[1641228960071,0.509864,46483.0,46481.0,0.05]
[1641228960272,0.0999,46482.0,46481.0,0.05]
[1641228960673,0.509864,46483.0,46481.0,0.32272838]
[1641228960931,0.0999,46482.0,46481.0,0.62534297]
[1641228961131,0.509864,46483.0,46481.0,1.00452997]
[1641228961331,0.509864,46483.0,46482.0,0.234179]
[1641228963232,0.0002,46484.0,46482.0,0.57817248]
[1641228963431,0.0002,46484.0,46483.0,0.31145309]
[1641228963631,0.1001,46484.0,46483.0,0.63882509]
[1641228963831,0.0001,46487.0,46484.0,0.234167]
[1641228964433,0.0001,46487.0,46485.0,0.05377413]
[1641228966878,0.0999,46486.0,46485.0,0.05377413]
[1641228967078,0.34028604,46486.0,46485.0,0.05377413]
[1641228967282,0.69013404,46486.0,46485.0,0.05377413]
[1641228968178,0.69013404,46486.0,46484.0,0.053775]
[1641228968179,0.09389841,46485.0,46484.0,0.053775]
[1641228968427,0.04776957,46484.0,46483.0,0.107549]
[1641228968627,0.61411659,46484.0,46483.0,0.107549]
[1641228968828,0.349848,46484.0,46483.0,0.107549]
[1641228969728,0.08,46484.0,46483.0,0.107549]
[1641228969928,0.053792,46485.0,46483.0,0.107549]
[1641228970129,0.0999,46484.0,46483.0,0.107549]
[1641228970527,0.0999,46484.0,46483.0,0.35423251]
[1641228970727,0.0999,46484.0,46483.0,0.107549]
[1641228971529,0.0949,46484.0,46483.0,0.107549]
[1641228971728,0.0949,46484.0,46483.0,0.341721]
[1641228973377,0.0949,46484.0,46483.0,0.34265808]
[1641228973577,0.29942439,46484.0,46483.0,0.34265808]
[1641228973778,0.29942439,46484.0,46483.0,0.10848608]
[1641228974379,0.0949,46484.0,46483.0,0.10848608]
[1641228974887,0.09345124,46484.0,46483.0,0.10848608]
[1641228976636,0.09345124,46484.0,46483.0,0.10755608]
[1641228976637,1.10443257,46484.0,46483.0,0.10755608]
[1641228976931,0.2,46483.0,46479.0,0.61560988]
[1641228977128,0.449848,46480.0,46479.0,0.60569337]
[1641228977330,0.449848,46480.0,46474.0,0.161372]
[1641228977331,0.586448,46480.0,46474.0,0.161372]
[1641228977528,0.57630665,46476.0,46474.0,0.161372]
[1641228977728,0.349848,46475.0,46474.0,0.161372]
[1641228978630,0.0933,46478.0,46474.0,0.161372]
[1641228978832,0.0933,46478.0,46474.0,0.21261356]
[1641228978833,0.053801,46476.0,46474.0,0.21261356]
[1641228979229,0.053801,46476.0,46475.0,0.234224]
[1641228980785,0.0933,46478.0,46475.0,0.234224]
[1641228980983,0.0933,46478.0,46475.0,0.28801]
[1641228981984,0.0933,46478.0,46476.0,0.10756968]
[1641228982683,0.0933,46478.0,46476.0,0.16135668]
[1641228983522,0.0933,46478.0,46476.0,0.15635668]
[1641228984423,7.204e-05,46477.0,46476.0,0.15635668]
[1641228985222,7.204e-05,46477.0,46476.0,0.94057268]
[1641228985630,7.204e-05,46477.0,46476.0,0.44057268]
[1641228988075,0.08837204,46478.0,46476.0,0.44057268]
[1641228988279,0.08837204,46478.0,46477.0,0.05]
[1641228990476,0.08837204,46478.0,46476.0,0.15635668]
[1641228990677,0.08837204,46478.0,46476.0,0.10256968]
[1641228990935,0.23917013,46477.0,46476.0,0.10256968]
[1641228991332,0.08837204,46478.0,46476.0,0.10256968]
[1641228992432,0.12553889,46478.0,46475.0,0.053786]
[1641228992632,0.393048,46477.0,46475.0,0.053786]
[1641228992830,0.393048,46477.0,46472.0,0.053805]
[1641228992831,0.38288764,46476.0,46472.0,0.053805]
[1641228993032,0.48389047,46475.0,46472.0,0.053805]
[1641228993231,0.04450358,46474.0,46472.0,0.053805]
[1641228993434,1.04075254,46473.0,46472.0,0.053805]
[1641228993833,0.94075254,46473.0,46472.0,0.053805]
[1641228994032,0.68746557,46473.0,46472.0,0.053805]
[1641228995384,0.68752769,46473.0,46472.0,0.05459736]
[1641228996186,0.81892769,46473.0,46472.0,0.05459736]
[1641228997085,0.73072769,46473.0,46472.0,0.05459736]
[1641228997486,0.68752769,46473.0,46472.0,0.05459736]
[1641228997887,0.34991012,46473.0,46472.0,0.05459736]
[1641228998536,0.57747584,46473.0,46472.0,0.05459736]
[1641228999034,0.34991012,46473.0,46472.0,0.05459736]
[1641229002377,6.212e-05,46473.0,46472.0,0.05459736]
[1641229002778,6.212e-05,46473.0,46472.0,0.13491736]
[1641229002975,6.212e-05,46473.0,46472.0,0.36915936]
[1641229003780,0.05006212,46473.0,46472.0,1.08757215]
[1641229005276,0.05006212,46473.0,46472.0,0.13491736]
[1641229005478,0.05006212,46473.0,46472.0,0.18491736]
[1641229005677,0.05006212,46473.0,46472.0,0.41915936]
[1641229006718,0.05006212,46473.0,46472.0,0.36915936]
[1641229007318,0.05006212,46473.0,46472.0,0.74330944]
[1641229007520,0.05006212,46473.0,46472.0,0.81243944]